[Event "Czech Youth U14 Girls 2024"]
[Site "Kouty nad Desnou"]
[Date "2024.03.15"]
[Round "8.13"]
[White "Pruskova, Justyna"]
[Black "Peskova, Sara"]
[Result "0-1"]
[ECO "C49"]
[WhiteElo "1471"]
[BlackElo "1481"]
[Annotator "NA COMBH"]
[PlyCount "158"]
[EventDate "2024.03.10"]
[EventType "swiss"]
[EventCountry "CZE"]
[SourceTitle "playchess.com"]
[Source "ChessBase"]
[SourceQuality "1"]
[TimeControl "40/5400+30:1800+30"]

1. e4 {[%emt 0:00:03]} e5 {[%emt 0:00:07]} 2. Nf3 {[%emt 0:00:09]} Nc6 {[%emt 0:00:06]} 3. Nc3 {[%emt 0:00:11]} Nf6 {[%emt 0:00:10]} 4. Bb5 {[%emt 0:00:11]} Bb4 {[%emt 0:00:48]} 5. O-O {[%emt 0:00:32]} d6 {[%emt 0:01:50]} 6. d3 {[%emt 0:00:27]} a6 {[%emt 0:02:29]} 7. Bxc6+ {[%emt 0:00:41]} bxc6 {[%emt 0:00:16]} 8. Bg5 {[%emt 0:00:28]} Bg4 {[%emt 0:00:33]} 9. Re1 {[%emt 0:06:09]} O-O {[%emt 0:00:44]} 10. h3 {[%emt 0:02:49]} Bh5 {[%emt 0:00:16]} 11. Qe2 {[%emt 0:00:30]} Re8 {[%emt 0:03:21]} 12. Qe3 {[%emt 0:01:25]} Bc5 {[%emt 0:01:06]} 13. d4 {[%emt 0:00:55]} exd4 {[%emt 0:02:32]} 14. Nxd4 {[%emt 0:00:19]} Rb8 {[%emt 0:06:15]} 15. Qd3 {[%emt 0:02:59]} Bxd4 {[%emt 0:02:56]} 16. Qxd4 {[%emt 0:00:53]} Rxb2 {[%emt 0:02:13]} 17. Bxf6 {[%emt 0:00:48]} Qxf6 {[%emt 0:00:30]} 18. Qd3 {[%emt 0:01:23]} Bg6 {[%emt 0:16:06]} 19. f3 {[%emt 0:00:48]} h6 {[%emt 0:02:01]} 20. Na4 {[%emt 0:00:55]} Rb4 {[%emt 0:01:53]} 21. Nc3 {[%emt 0:01:23]} d5 {[%emt 0:04:15]} 22. Re3 {[%emt 0:01:52]} d4 {[%emt 0:02:54]} 23. Re2 {[%emt 0:01:46]} dxc3 {[%emt 0:00:45]} 24. Rae1 {[%emt 0:00:35]} Qd4+ {[%emt 0:02:39]} 25. Qe3 {[%emt 0:00:31]} Qxe3+ {[%emt 0:00:00]} 26. Rxe3 {[%emt 0:00:30]} Rc4 {[%emt 0:00:02]} 27. Rb1 {[%emt 0:02:29]} Re5 {[%emt 0:02:55]} 28. Rb7 {[%emt 0:00:35]} Ra5 {[%emt 0:00:58]} 29. Rxc7 {[%emt 0:00:41]} Rxa2 {[%emt 0:00:21]} 30. Rc8+ {[%emt 0:00:44]} Kh7 {[%emt 0:00:13]} 31. Ra8 {[%emt 0:00:15]} a5 {[%emt 0:00:48]} 32. Re2 {[%emt 0:00:14]} a4 {[%emt 0:00:58]} 33. Ra5 {[%emt 0:00:29]} Rb4 {[%emt 0:02:18]} 34. Rc5 {[%emt 0:04:03]} a3 {[%emt 0:01:52]} 35. Ra5 {[%emt 0:00:09]} Ra1+ {[%emt 0:00:22]} 36. Kh2 {[%emt 0:00:14]} a2 {[%emt 0:00:28]} 37. Re3 {[%emt 0:00:51]} Rb2 {[%emt 0:00:32]} 38. Rxc3 {[%emt 0:00:21]} Rc1 {[%emt 0:01:31]} 39. Rca3 {[%emt 0:00:30]} Rcxc2 {[%emt 0:00:09]} 40. Kg3 {[%emt 0:00:44]} Rxg2+ {[%emt 0:00:58]} 41. Kf4 {[%emt 0:30:51]} f6 {[%emt 0:31:53]} 42. Ra7 {[%emt 0:00:25]} Rh2 {[%emt 0:02:07]} 43. Kg3 {[%emt 0:01:00]} Rbg2+ {[%emt 0:00:11]} 44. Kf4 {[%emt 0:01:03]} Rxh3 {[%emt 0:01:09]} 45. Rxa2 {[%emt 0:00:37]} Rxa2 {[%emt 0:00:02]} 46. Rxa2 {[%emt 0:00:16]} Rh1 {[%emt 0:00:37]} 47. Rc2 {[%emt 0:00:37]} Be8 {[%emt 0:00:42]} 48. Kf5 {[%emt 0:00:53]} Rf1 {[%emt 0:00:34]} 49. Rc3 {[%emt 0:00:31]} Bd7+ {[%emt 0:00:45]} 50. Kf4 {[%emt 0:00:31]} Rg1 {[%emt 0:01:05]} 51. Ke3 {[%emt 0:00:32]} h5 {[%emt 0:00:21]} 52. Kd4 {[%emt 0:00:18]} h4 {[%emt 0:00:27]} 53. f4 {[%emt 0:00:20]} Rg3 {[%emt 0:00:37]} 54. Rc2 {[%emt 0:00:24]} Rf3 {[%emt 0:00:59]} 55. f5 {[%emt 0:00:17]} Rf4 {[%emt 0:00:09]} 56. Ke3 {[%emt 0:00:22]} Rg4 {[%emt 0:00:31]} 57. Rh2 {[%emt 0:00:24]} Kh6 {[%emt 0:00:39]} 58. Kf3 {[%emt 0:01:19]} Kg5 {[%emt 0:00:23]} 59. Ke3 {[%emt 0:00:43]} Rg3+ {[%emt 0:00:24]} 60. Kf2 {[%emt 0:01:08]} Kg4 {[%emt 0:01:13]} 61. Ke2 {[%emt 0:01:26]} h3 {[%emt 0:00:43]} 62. Rh1 {[%emt 0:01:10]} Rg2+ {[%emt 0:00:42]} 63. Ke3 {[%emt 0:01:38]} Kg3 {[%emt 0:01:08]} 64. Rd1 {[%emt 0:02:00]} Be8 {[%emt 0:01:38]} 65. Rf1 {[%emt 0:01:36]} h2 {[%emt 0:02:23]} 66. Rf3+ {[%emt 0:00:33]} Kh4 {[%emt 0:00:45]} 67. Rf4+ {[%emt 0:00:32]} Kg5 {[%emt 0:01:45]} 68. Rf1 {[%emt 0:00:39]} Rg1 {[%emt 0:00:27]} 69. Rf3 {[%emt 0:00:46]} h1=Q {[%emt 0:00:27]} 70. Ke2 {[%emt 0:00:34]} Re1+ {[%emt 0:01:03]} 71. Kf2 {[%emt 0:00:23]} Rf1+ {[%emt 0:00:26]} 72. Ke3 {[%emt 0:00:22]} Qxf3+ {[%emt 0:00:06]} 73. Kd4 {[%emt 0:00:08]} Rd1+ {[%emt 0:00:32]} 74. Kc5 {[%emt 0:00:14]} Qxe4 {[%emt 0:00:30]} 75. Kb6 {[%emt 0:00:15]} Qb4+ {[%emt 0:00:29]} 76. Kc7 {[%emt 0:00:26]} Qa5+ {[%emt 0:00:32]} 77. Kb7 {[%emt 0:00:23]} Rb1+ {[%emt 0:00:50]} 78. Kc8 {[%emt 0:00:26]} Qa7 {[%emt 0:01:04]} 79. Kd8 {[%emt 0:00:15]} Rb8# {[%emt 0:00:15]} 0-1

[Event "Czech Youth U14 Girls 2024"]
[Site "Kouty nad Desnou"]
[Date "2024.03.16"]
[Round "9.1"]
[White "Kammova, Katerina"]
[Black "Kozusnikova, Daniela"]
[Result "1-0"]
[ECO "C00"]
[WhiteElo "1781"]
[BlackElo "1809"]
[Annotator "NA RC"]
[PlyCount "83"]
[EventDate "2024.03.10"]
[EventType "swiss"]
[EventCountry "CZE"]
[SourceTitle "playchess.com"]
[Source "ChessBase"]
[SourceQuality "1"]
[TimeControl "40/5400+30:1800+30"]

1. e4 {[%emt 0:00:02]} e6 {[%emt 0:00:48]} 2. d4 {[%emt 0:00:33]} b6 {[%emt 0:00:15]} 3. Bd3 {[%emt 0:02:21]} Bb7 {[%emt 0:00:25]} 4. c4 {[%emt 0:11:29]} Bb4+ {[%emt 0:04:41]} 5. Bd2 {[%emt 0:04:34]} Bxd2+ {[%emt 0:00:51]} 6. Nxd2 {[%emt 0:00:25]} d5 {[%emt 0:11:18]} 7. cxd5 {[%emt 0:05:05]} exd5 {[%emt 0:00:52]} 8. e5 {[%emt 0:01:09]} Ne7 {[%emt 0:02:29]} 9. Ngf3 {[%emt 0:02:35]} Nd7 {[%emt 0:06:37]} 10. O-O {[%emt 0:16:37]} h6 {[%emt 0:06:49]} 11. b4 {[%emt 0:15:55]} c6 {[%emt 0:18:52]} 12. Nh4 {[%emt 0:05:00]} O-O {[%emt 0:05:56]} 13. f4 {[%emt 0:01:39]} c5 {[%emt 0:02:30]} 14. Qg4 {[%emt 0:05:29]} cxd4 {[%emt 0:09:23]} 15. Nf5 {[%emt 0:02:07]} Nxf5 {[%emt 0:05:01]} 16. Bxf5 {[%emt 0:03:35]} Bc8 {[%emt 0:02:11]} 17. Rac1 {[%emt 0:00:58]} Re8 {[%emt 0:07:00]} 18. Rxc8 {[%emt 0:01:52]} Rxc8 {[%emt 0:00:11]} 19. Bxd7 {[%emt 0:00:13]} h5 {[%emt 0:01:30]} 20. Qh3 {[%emt 0:01:30]} Rc3 {[%emt 0:00:33]} 21. Nf3 {[%emt 0:00:16]} Re7 {[%emt 0:00:51]} 22. e6 {[%emt 0:00:34]} h4 {[%emt 0:05:14]} 23. exf7+ {[%emt 0:02:23]} Kxf7 {[%emt 0:01:37]} 24. Qf5+ {[%emt 0:00:16]} Kg8 {[%emt 0:00:07]} 25. Be6+ {[%emt 0:00:14]} Rxe6 {[%emt 0:00:36]} 26. Qxe6+ {[%emt 0:00:04]} Kh8 {[%emt 0:00:54]} 27. Ng5 {[%emt 0:01:11]} Qc8 {[%emt 0:01:40]} 28. Qg6 {[%emt 0:01:09]} Kg8 {[%emt 0:00:08]} 29. Qh7+ {[%emt 0:00:32]} Kf8 {[%emt 0:00:04]} 30. Qh8+ {[%emt 0:00:21]} Ke7 {[%emt 0:00:05]} 31. Qxg7+ {[%emt 0:00:08]} Kd6 {[%emt 0:00:35]} 32. Qe5+ {[%emt 0:00:39]} Kc6 {[%emt 0:00:21]} 33. Qxd4 {[%emt 0:01:32]} Rc4 {[%emt 0:00:27]} 34. b5+ {[%emt 0:00:50]} Kxb5 {[%emt 0:00:24]} 35. Qxd5+ {[%emt 0:00:06]} Ka6 {[%emt 0:00:16]} 36. Rd1 {[%emt 0:02:37]} Rc1 {[%emt 0:02:58]} 37. Qd3+ {[%emt 0:00:51]} Kb7 {[%emt 0:00:13]} 38. Qf3+ {[%emt 0:00:39]} Kb8 {[%emt 0:00:17]} 39. Rxc1 {[%emt 0:01:05]} Qxc1+ {[%emt 0:00:05]} 40. Qf1 {[%emt 0:00:24]} Qc5+ {[%emt 0:00:21]} 41. Kh1 {[%emt 0:30:09]} Qf5 {[%emt 0:31:08]} 42. Nh3 {[%emt 0:00:22]} 1-0

[Event "Czech Youth U14 Girls 2024"]
[Site "Kouty nad Desnou"]
[Date "2024.03.16"]
[Round "9.2"]
[White "Kubatova, Beta"]
[Black "Slivova, Linda"]
[Result "1/2-1/2"]
[ECO "D31"]
[WhiteElo "1666"]
[BlackElo "1824"]
[Annotator "NA RC"]
[PlyCount "96"]
[EventDate "2024.03.10"]
[EventType "swiss"]
[EventCountry "CZE"]
[SourceTitle "playchess.com"]
[Source "ChessBase"]
[SourceQuality "1"]
[TimeControl "40/5400+30:1800+30"]

1. d4 {[%emt 0:00:05]} d5 {[%emt 0:00:15]} 2. c4 {[%emt 0:00:11]} c6 {[%emt 0:00:13]} 3. Nc3 {[%emt 0:00:33]} e6 {[%emt 0:00:45]} 4. Nf3 {[%emt 0:00:48]} f5 {[%emt 0:00:58]} 5. Bg5 {[%emt 0:12:19]} Nf6 {[%emt 0:01:39]} 6. e3 {[%emt 0:05:39]} Bd6 {[%emt 0:01:24]} 7. Be2 {[%emt 0:04:40]} O-O {[%emt 0:01:01]} 8. O-O {[%emt 0:02:05]} Qe8 {[%emt 0:02:21]} 9. Qc2 {[%emt 0:10:16]} Ne4 {[%emt 0:02:52]} 10. Nxe4 {[%emt 0:10:43]} fxe4 {[%emt 0:01:11]} 11. Ne5 {[%emt 0:02:40]} Bxe5 {[%emt 0:15:25]} 12. dxe5 {[%emt 0:00:16]} b6 {[%emt 0:02:45]} 13. Rac1 {[%emt 0:06:26]} Bb7 {[%emt 0:02:14]} 14. b4 {[%emt 0:03:31]} Nd7 {[%emt 0:01:59]} 15. Bf4 {[%emt 0:00:49]} c5 {[%emt 0:11:34]} 16. bxc5 {[%emt 0:05:19]} Nxc5 {[%emt 0:11:01]} 17. cxd5 {[%emt 0:02:24]} exd5 {[%emt 0:01:45]} 18. Rfd1 {[%emt 0:04:46]} Qe7 {[%emt 0:11:03]} 19. Bg3 {[%emt 0:06:09]} Rac8 {[%emt 0:03:13]} 20. Qd2 {[%emt 0:02:51]} Nd7 {[%emt 0:05:13]} 21. Qb2 {[%emt 0:04:28]} Rxc1 {[%emt 0:05:19]} 22. Rxc1 {[%emt 0:00:10]} Nc5 {[%emt 0:00:29]} 23. Qd4 {[%emt 0:04:46]} Re8 {[%emt 0:06:44]} 24. f4 {[%emt 0:04:18]} exf3 {[%emt 0:00:28]} 25. Bxf3 {[%emt 0:00:23]} Ne4 {[%emt 0:00:36]} 26. Bxe4 {[%emt 0:00:35]} dxe4 {[%emt 0:00:12]} 27. Qc4+ {[%emt 0:00:35]} Kh8 {[%emt 0:00:22]} 28. Qc7 {[%emt 0:01:01]} h6 {[%emt 0:01:03]} 29. Qd6 {[%emt 0:02:19]} Qxd6 {[%emt 0:09:03]} 30. exd6 {[%emt 0:00:06]} Rc8 {[%emt 0:01:33]} 31. Rd1 {[%emt 0:03:10]} Bc6 {[%emt 0:00:42]} 32. Rc1 {[%emt 0:01:03]} Bd7 {[%emt 0:00:34]} 33. Rc7 {[%emt 0:00:24]} Rxc7 {[%emt 0:00:10]} 34. dxc7 {[%emt 0:00:04]} Kg8 {[%emt 0:00:08]} 35. Kf1 {[%emt 0:00:14]} Kf7 {[%emt 0:00:30]} 36. Ke2 {[%emt 0:00:19]} Ke6 {[%emt 0:00:18]} 37. Kd2 {[%emt 0:01:05]} Kd5 {[%emt 0:00:22]} 38. Kc3 {[%emt 0:00:19]} Kc5 {[%emt 0:00:25]} 39. Be5 {[%emt 0:01:01]} g6 {[%emt 0:00:14]} 40. h4 {[%emt 0:00:33]} h5 {[%emt 0:00:20]} 41. a3 {[%emt 0:30:34]} Be6 {[%emt 0:03:59]} 42. g3 {[%emt 0:00:00]} Bd7 {[%emt 0:01:15]} 43. Bf6 {[%emt 0:00:00]} a6 {[%emt 0:06:51]} 44. a4 {[%emt 0:00:00]} Be6 {[%emt 0:02:54]} 45. Be7+ {[%emt 0:00:00]} Kd5 {[%emt 0:00:51]} 46. Kb4 {[%emt 0:00:00]} Kc6 {[%emt 0:01:58]} 47. Bd8 {[%emt 0:00:00]} Kd5 {[%emt 0:00:45]} 48. Bf6 {[%emt 0:00:00]} Kc6 {[%emt 0:00:09]} 1/2-1/2

[Event "Czech Youth U14 Girls 2024"]
[Site "Kouty nad Desnou"]
[Date "2024.03.16"]
[Round "9.3"]
[White "Horkova, Tereza"]
[Black "Barteckova, Nikol"]
[Result "0-1"]
[ECO "C02"]
[WhiteElo "1845"]
[BlackElo "1612"]
[Annotator "NA RC"]
[PlyCount "94"]
[EventDate "2024.03.10"]
[EventType "swiss"]
[EventCountry "CZE"]
[SourceTitle "playchess.com"]
[Source "ChessBase"]
[SourceQuality "1"]
[TimeControl "40/5400+30:1800+30"]

1. e4 {[%emt 0:00:01]} e6 {[%emt 0:00:44]} 2. d4 {[%emt 0:00:15]} d5 {[%emt 0:00:04]} 3. e5 {[%emt 0:00:11]} c5 {[%emt 0:00:14]} 4. c3 {[%emt 0:00:01]} Nc6 {[%emt 0:00:22]} 5. Nf3 {[%emt 0:00:16]} Bd7 {[%emt 0:00:40]} 6. Be2 {[%emt 0:00:31]} Qb6 {[%emt 0:00:23]} 7. O-O {[%emt 0:00:26]} cxd4 {[%emt 0:01:26]} 8. cxd4 {[%emt 0:00:14]} Nge7 {[%emt 0:00:49]} 9. Na3 {[%emt 0:00:36]} Nf5 {[%emt 0:00:19]} 10. Nc2 {[%emt 0:00:16]} Be7 {[%emt 0:01:00]} 11. g3 {[%emt 0:01:10]} O-O {[%emt 0:05:13]} 12. h4 {[%emt 0:01:19]} Rac8 {[%emt 0:05:51]} 13. b3 {[%emt 0:05:16]} Rc7 {[%emt 0:07:02]} 14. Bb2 {[%emt 0:02:21]} Rfc8 {[%emt 0:01:17]} 15. Rc1 {[%emt 0:07:00]} a6 {[%emt 0:03:02]} 16. Kg2 {[%emt 0:00:50]} Na7 {[%emt 0:08:32]} 17. Ne3 {[%emt 0:03:38]} Nxe3+ {[%emt 0:04:31]} 18. fxe3 {[%emt 0:00:05]} Rxc1 {[%emt 0:03:31]} 19. Bxc1 {[%emt 0:00:15]} Qc7 {[%emt 0:01:18]} 20. Qe1 {[%emt 0:11:27]} Qc2 {[%emt 0:07:37]} 21. Qf2 {[%emt 0:02:43]} Be8 {[%emt 0:11:56]} 22. Ng5 {[%emt 0:10:12]} Bxg5 {[%emt 0:07:19]} 23. hxg5 {[%emt 0:00:02]} Qg6 {[%emt 0:00:38]} 24. Ba3 {[%emt 0:16:38]} Bb5 {[%emt 0:04:05]} 25. Rc1 {[%emt 0:05:34]} Rxc1 {[%emt 0:03:06]} 26. Bxc1 {[%emt 0:00:02]} Bxe2 {[%emt 0:00:22]} 27. Qxe2 {[%emt 0:00:09]} Qxg5 {[%emt 0:01:02]} 28. Qc2 {[%emt 0:02:55]} Nc6 {[%emt 0:01:50]} 29. Qc5 {[%emt 0:01:31]} Qh5 {[%emt 0:02:55]} 30. Ba3 h6 {[%emt 0:02:04]} 31. Qc2 {[%emt 0:11:09]} Qg5 {[%emt 0:01:52]} 32. Qc3 {[%emt 0:02:16]} h5 {[%emt 0:01:28]} 33. Kf3 {[%emt 0:01:17]} Qf5+ {[%emt 0:01:16]} 34. Kg2 {[%emt 0:00:42]} h4 {[%emt 0:00:35]} 35. gxh4 {[%emt 0:00:10]} Qg4+ {[%emt 0:00:17]} 36. Kf1 {[%emt 0:00:39]} Qxh4 {[%emt 0:00:38]} 37. Qc5 {[%emt 0:00:21]} Qh3+ {[%emt 0:02:42]} 38. Ke2 {[%emt 0:00:23]} Qg2+ {[%emt 0:01:05]} 39. Ke1 {[%emt 0:00:39]} Qf3 {[%emt 0:02:12]} 40. Qc3 {[%emt 0:01:55]} Qh1+ {[%emt 0:02:29]} 41. Kf2 {[%emt 0:30:50]} Qh2+ {[%emt 0:32:30]} 42. Ke1 {[%emt 0:00:46]} Qxa2 {[%emt 0:00:30]} 43. Qc5 {[%emt 0:00:12]} Qxb3 {[%emt 0:02:43]} 44. Qf8+ {[%emt 0:00:11]} Kh7 {[%emt 0:00:01]} 45. Qxf7 {[%emt 0:00:14]} Qxe3+ {[%emt 0:00:26]} 46. Kf1 {[%emt 0:00:11]} Qh3+ {[%emt 0:00:39]} 47. Kg1 {[%emt 0:00:20]} Nxd4 {[%emt 0:02:10]} 0-1

[Event "Czech Youth U14 Girls 2024"]
[Site "Kouty nad Desnou"]
[Date "2024.03.16"]
[Round "9.4"]
[White "Bartova, Hana"]
[Black "Bouchalova, Kveta"]
[Result "1-0"]
[ECO "C55"]
[WhiteElo "1667"]
[BlackElo "1627"]
[Annotator "NA RC"]
[PlyCount "115"]
[EventDate "2024.03.10"]
[EventType "swiss"]
[EventCountry "CZE"]
[SourceTitle "playchess.com"]
[Source "ChessBase"]
[SourceQuality "1"]
[TimeControl "40/5400+30:1800+30"]

1. e4 {[%emt 0:00:08]} e5 {[%emt 0:00:04]} 2. Nf3 {[%emt 0:00:05]} Nc6 {[%emt 0:00:04]} 3. Bc4 {[%emt 0:00:11]} Nf6 {[%emt 0:00:06]} 4. d4 {[%emt 0:00:40]} exd4 {[%emt 0:00:07]} 5. e5 {[%emt 0:00:05]} Ne4 {[%emt 0:00:14]} 6. Qe2 {[%emt 0:00:34]} Nc5 {[%emt 0:05:44]} 7. c3 {[%emt 0:01:40]} Ne6 {[%emt 0:07:17]} 8. O-O {[%emt 0:04:23]} Be7 {[%emt 0:07:09]} 9. Rd1 {[%emt 0:02:35]} dxc3 {[%emt 0:15:04]} 10. Nxc3 {[%emt 0:01:23]} O-O {[%emt 0:04:09]} 11. Be3 {[%emt 0:03:16]} Qe8 {[%emt 0:04:56]} 12. Rd2 {[%emt 0:05:21]} d6 {[%emt 0:01:47]} 13. exd6 {[%emt 0:00:53]} Bxd6 {[%emt 0:00:13]} 14. Nb5 {[%emt 0:00:29]} Na5 {[%emt 0:15:39]} 15. Nxd6 {[%emt 0:03:55]} cxd6 {[%emt 0:00:34]} 16. Bb5 {[%emt 0:01:34]} Bd7 {[%emt 0:00:31]} 17. Bxd7 {[%emt 0:00:30]} Qxd7 {[%emt 0:00:03]} 18. Rad1 {[%emt 0:00:24]} Qc7 {[%emt 0:04:21]} 19. Rxd6 {[%emt 0:03:12]} Nc4 {[%emt 0:00:51]} 20. Rd7 {[%emt 0:00:53]} Qc6 {[%emt 0:00:48]} 21. b3 {[%emt 0:03:06]} Nxe3 {[%emt 0:00:23]} 22. Qxe3 {[%emt 0:00:05]} Qc2 {[%emt 0:03:18]} 23. Ne5 {[%emt 0:05:02]} Rad8 {[%emt 0:08:25]} 24. Rc1 {[%emt 0:06:09]} Qxa2 {[%emt 0:06:59]} 25. Rxb7 {[%emt 0:01:23]} Rb8 {[%emt 0:04:49]} 26. Rxb8 {[%emt 0:14:04]} Rxb8 {[%emt 0:00:06]} 27. Qf3 {[%emt 0:00:34]} Rf8 {[%emt 0:02:14]} 28. Qe3 {[%emt 0:06:48]} h6 {[%emt 0:02:15]} 29. g3 {[%emt 0:03:03]} Rb8 {[%emt 0:01:37]} 30. Qf3 {[%emt 0:02:38]} Rf8 {[%emt 0:01:25]} 31. Qc3 {[%emt 0:01:37]} Rb8 {[%emt 0:01:11]} 32. Qd3 {[%emt 0:02:41]} Qxb3 {[%emt 0:01:07]} 33. Rc8+ {[%emt 0:00:15]} Nf8 {[%emt 0:01:13]} 34. Qxb3 {[%emt 0:01:09]} Rxb3 {[%emt 0:00:15]} 35. Nd7 {[%emt 0:00:10]} g6 {[%emt 0:01:23]} 36. Rxf8+ {[%emt 0:01:25]} Kg7 {[%emt 0:00:11]} 37. Ra8 {[%emt 0:00:26]} a5 {[%emt 0:00:37]} 38. Rxa5 {[%emt 0:00:10]} h5 {[%emt 0:01:14]} 39. h4 {[%emt 0:00:51]} Rd3 {[%emt 0:00:59]} 40. Ne5 {[%emt 0:00:22]} Rd6 {[%emt 0:00:18]} 41. Ra7 {[%emt 0:30:27]} Rf6 {[%emt 0:30:18]} 42. f4 {[%emt 0:00:42]} Rf5 {[%emt 0:00:00]} 43. Kf2 {[%emt 0:00:00]} Rf6 {[%emt 0:00:00]} 44. Kf3 {[%emt 0:00:00]} Rf5 {[%emt 0:00:00]} 45. Ke4 {[%emt 0:00:00]} Rf6 {[%emt 0:00:00]} 46. Kd5 {[%emt 0:00:00]} Kg8 {[%emt 0:00:00]} 47. Nc4 {[%emt 0:00:00]} Re6 {[%emt 0:00:00]} 48. Ne5 {[%emt 0:00:00]} Rf6 {[%emt 0:00:00]} 49. Nxf7 {[%emt 0:00:00]} Rxf7 {[%emt 0:00:00]} 50. Rxf7 {[%emt 0:00:00]} Kxf7 {[%emt 0:00:00]} 51. Ke5 {[%emt 0:00:00]} Kg7 {[%emt 0:00:00]} 52. Ke6 {[%emt 0:00:00]} Kh6 {[%emt 0:00:00]} 53. Kf6 {[%emt 0:00:00]} Kh7 {[%emt 0:00:00]} 54. Kg5 {[%emt 0:00:00]} Kg7 {[%emt 0:00:00]} 55. f5 {[%emt 0:00:00]} gxf5 {[%emt 0:00:00]} 56. Kxf5 {[%emt 0:00:00]} Kh6 {[%emt 0:00:00]} 57. Kf6 {[%emt 0:00:00]} Kh7 {[%emt 0:00:00]} 58. Kg5 {[%emt 0:00:00]} 1-0

[Event "Czech Youth U14 Girls 2024"]
[Site "Kouty nad Desnou"]
[Date "2024.03.16"]
[Round "9.5"]
[White "Kubatova, Ema"]
[Black "Nova, Doubravka Anezka"]
[Result "0-1"]
[ECO "A56"]
[WhiteElo "1580"]
[BlackElo "1718"]
[Annotator "NA"]
[PlyCount "89"]
[EventDate "2024.03.10"]
[EventType "swiss"]
[EventCountry "CZE"]
[SourceTitle "playchess.com"]
[Source "ChessBase"]
[SourceQuality "1"]
[TimeControl "40/5400+30:1800+30"]

1. d4 {[%emt 0:00:02]} Nf6 {[%emt 0:00:05]} 2. c4 {[%emt 0:00:11]} c5 {[%emt 0:00:03]} 3. Nf3 {[%emt 0:05:31]} cxd4 {[%emt 0:00:18]} 4. Nxd4 {[%emt 0:00:25]} e5 {[%emt 0:00:11]} 5. Nf3 {[%emt 0:05:01]} e4 {[%emt 0:02:23]} 6. Nd4 {[%emt 0:02:09]} d5 {[%emt 0:02:12]} 7. cxd5 {[%emt 0:12:29]} Qxd5 {[%emt 0:06:05]} 8. e3 {[%emt 0:01:05]} Bb4+ {[%emt 0:06:46]} 9. Bd2 {[%emt 0:01:31]} Bxd2+ {[%emt 0:01:05]} 10. Qxd2 {[%emt 0:01:15]} O-O {[%emt 0:01:58]} 11. Nc3 {[%emt 0:01:30]} Qe5 {[%emt 0:04:23]} 12. Nce2 {[%emt 0:03:56]} Rd8 {[%emt 0:03:27]} 13. Qc2 {[%emt 0:06:17]} Bd7 {[%emt 0:05:25]} 14. Ng3 {[%emt 0:04:28]} Nc6 {[%emt 0:02:17]} 15. Nxc6 {[%emt 0:07:06]} Bxc6 {[%emt 0:00:14]} 16. Be2 {[%emt 0:00:26]} Qa5+ {[%emt 0:02:07]} 17. Qc3 {[%emt 0:01:19]} Qxc3+ {[%emt 0:00:13]} 18. bxc3 {[%emt 0:00:09]} Rac8 {[%emt 0:00:57]} 19. c4 {[%emt 0:03:20]} b6 {[%emt 0:03:48]} 20. O-O {[%emt 0:01:00]} Rd2 {[%emt 0:02:52]} 21. Rfd1 {[%emt 0:03:01]} Rcd8 {[%emt 0:01:31]} 22. Nf5 {[%emt 0:03:07]} Kf8 {[%emt 0:08:19]} 23. Nd4 {[%emt 0:01:03]} R8xd4 {[%emt 0:03:09]} 24. exd4 {[%emt 0:00:58]} Rxe2 {[%emt 0:00:05]} 25. d5 {[%emt 0:04:20]} Bb7 {[%emt 0:02:30]} 26. Kf1 {[%emt 0:04:11]} Rc2 {[%emt 0:01:31]} 27. Rdc1 {[%emt 0:01:08]} Rxc1+ {[%emt 0:00:44]} 28. Rxc1 {[%emt 0:00:07]} Ba6 {[%emt 0:00:21]} 29. Ke1 {[%emt 0:02:25]} Ke7 {[%emt 0:00:39]} 30. h3 {[%emt 0:01:08]} Kd6 {[%emt 0:00:27]} 31. Kd2 {[%emt 0:03:30]} Kc5 {[%emt 0:02:16]} 32. Ke3 {[%emt 0:05:50]} Bxc4 {[%emt 0:00:38]} 33. d6 {[%emt 0:00:57]} b5 {[%emt 0:02:26]} 34. d7 {[%emt 0:01:15]} Nxd7 {[%emt 0:00:44]} 35. Kxe4 {[%emt 0:00:20]} Kb4 {[%emt 0:01:17]} 36. Ke3 {[%emt 0:03:17]} Ka3 {[%emt 0:00:39]} 37. Rd1 {[%emt 0:00:40]} Nf6 {[%emt 0:00:50]} 38. Rd6 {[%emt 0:00:50]} a5 {[%emt 0:00:14]} 39. Ra6 {[%emt 0:00:50]} a4 {[%emt 0:00:11]} 40. f3 {[%emt 0:01:11]} Kxa2 {[%emt 0:00:16]} 41. Kd2 {[%emt 0:30:25]} Kb2 {[%emt 0:30:13]} 42. Ra7 {[%emt 0:01:48]} a3 {[%emt 0:00:10]} 43. Rxa3 {[%emt 0:00:28]} Kxa3 {[%emt 0:00:10]} 44. Kc3 {[%emt 0:00:14]} Bf1 {[%emt 0:00:08]} 45. Kd4 0-1